[Event "*** Titled Tuesday Blitz"]
[Site "Chess.com"]
[Date "2021.03.30"]
[Round "3"]
[White "AthanasiusLefebvre"]
[Black "visa"]
[Result "0-1"]
[WhiteElo "2008"]
[BlackElo "2305"]
[TimeControl "180+1"]
[EndTime "10:28:23 PDT"]
[Termination "visa won on time"]

1. g3 {[%clk 0:03:00.9]} 1... d5 {[%clk 0:02:53.3]} 2. Nf3 {[%clk 0:02:57.9]}
2... Nf6 {[%clk 0:02:53.2]} 3. d3 {[%clk 0:02:58.2]} 3... c5 {[%clk 0:02:47.8]}
4. Bg2 {[%clk 0:02:58.7]} 4... Nc6 {[%clk 0:02:48.1]} 5. O-O {[%clk 0:02:59.2]}
5... e5 {[%clk 0:02:48.3]} 6. c4 {[%clk 0:02:59.7]} 6... Be6 {[%clk 0:02:41.2]}
7. Ng5 {[%clk 0:02:57.2]} 7... Qd7 {[%clk 0:02:31.6]} 8. Nxe6 {[%clk 0:02:56.3]}
8... fxe6 {[%clk 0:02:28.9]} 9. Nc3 {[%clk 0:02:55.2]} 9... Bd6 {[%clk
0:02:26.7]} 10. cxd5 {[%clk 0:02:49.5]} 10... exd5 {[%clk 0:02:22.9]} 11. Nxd5
{[%clk 0:02:49.7]} 11... O-O {[%clk 0:02:19]} 12. a3 {[%clk 0:02:38.8]} 12...
Kh8 {[%clk 0:02:17.9]} 13. Rb1 {[%clk 0:02:06.4]} 13... Rae8 {[%clk 0:02:14]}
14. Qa4 {[%clk 0:02:04.1]} 14... Nd4 {[%clk 0:01:59.9]} 15. Qd1 {[%clk
0:01:49.5]} 15... b5 {[%clk 0:01:52.5]} 16. b4 {[%clk 0:01:45.2]} 16... Nxd5
{[%clk 0:01:40.6]} 17. Bxd5 {[%clk 0:01:42.2]} 17... cxb4 {[%clk 0:01:40.8]} 18.
axb4 {[%clk 0:01:33.3]} 18... Bxb4 {[%clk 0:01:39.5]} 19. Be4 {[%clk 0:01:26.3]}
19... a5 {[%clk 0:01:34.1]} 20. e3 {[%clk 0:01:22.4]} 20... Ne6 {[%clk
0:01:27.9]} 21. Qh5 {[%clk 0:01:17.5]} 21... h6 {[%clk 0:00:59.6]} 22. Qxe5
{[%clk 0:01:15.9]} 22... Nc5 {[%clk 0:00:51.7]} 23. Qd5 {[%clk 0:01:00.7]} 23...
Qxd5 {[%clk 0:00:45.9]} 24. Bxd5 {[%clk 0:01:00.6]} 24... Nxd3 {[%clk
0:00:46.8]} 25. Bc6 {[%clk 0:00:57.5]} 25... Re5 {[%clk 0:00:33.7]} 26. Bb2
{[%clk 0:00:51]} 26... Rc5 {[%clk 0:00:27.2]} 27. Be4 {[%clk 0:00:47.8]} 27...
Nxb2 {[%clk 0:00:15.1]} 28. Rxb2 {[%clk 0:00:47.2]} 28... Re5 {[%clk 0:00:14.1]}
29. f3 {[%clk 0:00:40.1]} 29... Bc3 {[%clk 0:00:14.4]} 30. Rc2 {[%clk
0:00:29.4]} 30... b4 {[%clk 0:00:15.3]} 31. Rb1 {[%clk 0:00:12]} 31... a4 {[%clk
0:00:14.8]} 32. Kg2 {[%clk 0:00:11.3]} 32... a3 {[%clk 0:00:14.6]} 33. Rb3
{[%clk 0:00:10.3]} 33... Ra5 {[%clk 0:00:12.3]} 34. Ra2 {[%clk 0:00:06]} 34...
Rd8 {[%clk 0:00:11.9]} 35. Kf2 {[%clk 0:00:04.9]} 35... Rd2+ {[%clk 0:00:11.6]}
0-1

[Event "*** Titled Tuesday Blitz"]
[Site "Chess.com"]
[Date "2021.03.30"]
[Round "3"]
[White "karinachess1"]
[Black "artichaud"]
[Result "1-0"]
[WhiteElo "2493"]
[BlackElo "2105"]
[TimeControl "180+1"]
[EndTime "10:28:25 PDT"]
[Termination "karinachess1 won on time"]

1. c4 {[%clk 0:03:00.9]} 1... e6 {[%clk 0:02:58.8]} 2. Nf3 {[%clk 0:03:00]} 2...
d5 {[%clk 0:02:58.7]} 3. g3 {[%clk 0:03:00.2]} 3... Nf6 {[%clk 0:02:57.8]} 4.
Bg2 {[%clk 0:03:00.4]} 4... Be7 {[%clk 0:02:55]} 5. O-O {[%clk 0:03:00.4]} 5...
O-O {[%clk 0:02:55.2]} 6. b3 {[%clk 0:03:00.6]} 6... b6 {[%clk 0:02:54.6]} 7.
Bb2 {[%clk 0:02:58.5]} 7... Bb7 {[%clk 0:02:54]} 8. e3 {[%clk 0:02:58.2]} 8...
Na6 {[%clk 0:02:50.7]} 9. d4 {[%clk 0:02:36.4]} 9... c5 {[%clk 0:02:48.3]} 10.
Ne5 {[%clk 0:02:32.1]} 10... cxd4 {[%clk 0:02:41.6]} 11. Qxd4 {[%clk 0:02:22.8]}
11... Qc7 {[%clk 0:02:26.8]} 12. cxd5 {[%clk 0:01:49.1]} 12... Bxd5 {[%clk
0:02:22.6]} 13. Bxd5 {[%clk 0:01:48.8]} 13... exd5 {[%clk 0:01:56.5]} 14. Rc1
{[%clk 0:01:44.1]} 14... Qb7 {[%clk 0:01:51.6]} 15. Nd2 {[%clk 0:01:35.6]} 15...
Rac8 {[%clk 0:01:47.6]} 16. Ndf3 {[%clk 0:01:04.4]} 16... Nc5 {[%clk 0:01:44.4]}
17. Kg2 {[%clk 0:00:38.9]} 17... Rfd8 {[%clk 0:00:52.3]} 18. Rd1 {[%clk
0:00:30.7]} 18... Ne6 {[%clk 0:00:37]} 19. Qd3 {[%clk 0:00:30.5]} 19... Ne4
{[%clk 0:00:31.4]} 20. h4 {[%clk 0:00:18.6]} 20... h6 {[%clk 0:00:26.1]} 21.
Rac1 {[%clk 0:00:17.2]} 21... Rxc1 {[%clk 0:00:15.5]} 22. Rxc1 {[%clk
0:00:16.4]} 22... d4 {[%clk 0:00:16.4]} 23. exd4 {[%clk 0:00:15.3]} 23... Qd5
{[%clk 0:00:10.8]} 24. Qc4 {[%clk 0:00:13.7]} 24... Nf6 {[%clk 0:00:06.5]} 25.
Qxd5 {[%clk 0:00:13.3]} 25... Nxd5 {[%clk 0:00:06.2]} 26. Nc6 {[%clk 0:00:13.5]}
26... Rd7 {[%clk 0:00:05.5]} 27. Nxe7+ {[%clk 0:00:12.2]} 27... Rxe7 {[%clk
0:00:06.4]} 28. Rc8+ {[%clk 0:00:12.1]} 28... Kh7 {[%clk 0:00:06.1]} 29. Ne5
{[%clk 0:00:11.5]} 29... f6 {[%clk 0:00:05]} 30. Nc6 {[%clk 0:00:11.5]} 30...
Rd7 {[%clk 0:00:03.8]} 31. Ra8 {[%clk 0:00:10]} 31... a5 {[%clk 0:00:01.4]} 32.
Ra7 {[%clk 0:00:09.9]} 1-0

[Event "*** Titled Tuesday Blitz"]
[Site "Chess.com"]
[Date "2021.03.30"]
[Round "3"]
[White "comsac"]
[Black "Artyom_ChessMate"]
[Result "1-0"]
[WhiteElo "2388"]
[BlackElo "2539"]
[TimeControl "180+1"]
[EndTime "10:28:26 PDT"]
[Termination "comsac won by resignation"]

1. e4 {[%clk 0:03:00.9]} 1... c5 {[%clk 0:03:00.1]} 2. c3 {[%clk 0:03:01.1]}
2... Nf6 {[%clk 0:02:59.5]} 3. e5 {[%clk 0:03:01.1]} 3... Nd5 {[%clk 0:02:59.5]}
4. d4 {[%clk 0:03:02]} 4... cxd4 {[%clk 0:03:00.4]} 5. Nf3 {[%clk 0:03:02.9]}
5... d6 {[%clk 0:03:00.1]} 6. cxd4 {[%clk 0:03:03.5]} 6... Nc6 {[%clk
0:02:59.3]} 7. Bc4 {[%clk 0:03:04]} 7... Nb6 {[%clk 0:02:59.4]} 8. Bb5 {[%clk
0:03:04.2]} 8... Bd7 {[%clk 0:02:59.8]} 9. Nc3 {[%clk 0:03:02.9]} 9... dxe5
{[%clk 0:02:58.1]} 10. dxe5 {[%clk 0:02:59.7]} 10... a6 {[%clk 0:02:53.3]} 11.
Bd3 {[%clk 0:02:58.2]} 11... g6 {[%clk 0:02:51.9]} 12. O-O {[%clk 0:02:57.3]}
12... Bg7 {[%clk 0:02:52]} 13. Re1 {[%clk 0:02:56.8]} 13... O-O {[%clk 0:02:52]}
14. h3 {[%clk 0:02:56]} 14... h6 {[%clk 0:02:47.6]} 15. a3 {[%clk 0:02:55.2]}
15... Be6 {[%clk 0:02:47.7]} 16. Qe2 {[%clk 0:02:42.1]} 16... Rc8 {[%clk
0:02:31.9]} 17. Be3 {[%clk 0:02:41.8]} 17... Nd5 {[%clk 0:02:22.8]} 18. Nxd5
{[%clk 0:02:25]} 18... Qxd5 {[%clk 0:02:22.5]} 19. Bf4 {[%clk 0:02:25.6]} 19...
Rfd8 {[%clk 0:02:18.1]} 20. Rad1 {[%clk 0:02:25.3]} 20... Qa5 {[%clk 0:02:10.1]}
21. Bd2 {[%clk 0:02:13]} 21... Qb6 {[%clk 0:02:04.3]} 22. Bc3 {[%clk 0:02:13.3]}
22... Bb3 {[%clk 0:02:01.3]} 23. Rc1 {[%clk 0:02:06.5]} 23... e6 {[%clk
0:02:01.3]} 24. Be4 {[%clk 0:01:53.3]} 24... Bd5 {[%clk 0:02:00.3]} 25. Bb1
{[%clk 0:01:44.8]} 25... Na5 {[%clk 0:01:31.4]} 26. Nh4 {[%clk 0:01:35.8]} 26...
Nb3 {[%clk 0:01:27.3]} 27. Rcd1 {[%clk 0:01:35]} 27... Bc4 {[%clk 0:01:24.2]}
28. Qg4 {[%clk 0:01:30.6]} 28... g5 {[%clk 0:00:50.7]} 29. Nf3 {[%clk
0:00:54.2]} 29... Bd5 {[%clk 0:00:33]} 30. Nxg5 {[%clk 0:00:43.2]} 30... hxg5
{[%clk 0:00:31.1]} 31. Qxg5 {[%clk 0:00:44.1]} 31... Qc6 {[%clk 0:00:25.9]} 32.
Re3 {[%clk 0:00:34.7]} 32... Qe8 {[%clk 0:00:10.4]} 33. Rg3 {[%clk 0:00:31.5]}
33... Qf8 {[%clk 0:00:10.7]} 34. Qh5 {[%clk 0:00:31.9]} 34... Be4 {[%clk
0:00:06.3]} 35. Rxd8 {[%clk 0:00:29.5]} 35... Rxd8 {[%clk 0:00:07.2]} 36. Bxe4
{[%clk 0:00:29.1]} 36... Qc5 {[%clk 0:00:02.5]} 37. Rxg7+ {[%clk 0:00:20.2]}
37... Kxg7 {[%clk 0:00:03.4]} 38. Qg5+ {[%clk 0:00:20.7]} 38... Kf8 {[%clk
0:00:02.4]} 39. Qxd8+ {[%clk 0:00:21.3]} 39... Kg7 {[%clk 0:00:03.3]} 40. Qg5+
{[%clk 0:00:20.1]} 40... Kf8 {[%clk 0:00:04.2]} 41. Bb4 {[%clk 0:00:20.3]} 1-0

[Event "*** Titled Tuesday Blitz"]
[Site "Chess.com"]
[Date "2021.03.30"]
[Round "3"]
[White "Omk124"]
[Black "Abund"]
[Result "0-1"]
[WhiteElo "2487"]
[BlackElo "2741"]
[TimeControl "180+1"]
[EndTime "10:28:27 PDT"]
[Termination "Abund won by resignation"]

1. e4 {[%clk 0:03:00.9]} 1... c5 {[%clk 0:02:57.7]} 2. Nf3 {[%clk 0:03:01]} 2...
d6 {[%clk 0:02:57.5]} 3. d4 {[%clk 0:03:00.9]} 3... cxd4 {[%clk 0:02:58.4]} 4.
Nxd4 {[%clk 0:03:01.8]} 4... Nf6 {[%clk 0:02:58.6]} 5. Nc3 {[%clk 0:03:02.4]}
5... a6 {[%clk 0:02:58.7]} 6. g3 {[%clk 0:03:02]} 6... e5 {[%clk 0:02:58.2]} 7.
Nde2 {[%clk 0:03:02]} 7... Be7 {[%clk 0:02:56.4]} 8. Bg2 {[%clk 0:03:02.5]} 8...
b5 {[%clk 0:02:56.8]} 9. O-O {[%clk 0:03:02.3]} 9... O-O {[%clk 0:02:52.8]} 10.
Nd5 {[%clk 0:03:01.9]} 10... Nbd7 {[%clk 0:02:40.8]} 11. Nec3 {[%clk 0:02:59.4]}
11... Bb7 {[%clk 0:02:26.5]} 12. a3 {[%clk 0:02:55.7]} 12... Rc8 {[%clk
0:02:16.6]} 13. Nxe7+ {[%clk 0:02:53.3]} 13... Qxe7 {[%clk 0:02:16.3]} 14. Be3
{[%clk 0:02:53.7]} 14... Nc5 {[%clk 0:02:13.2]} 15. Bg5 {[%clk 0:02:26.6]} 15...
h6 {[%clk 0:02:09.2]} 16. Bxf6 {[%clk 0:02:26.5]} 16... Qxf6 {[%clk 0:02:10.1]}
17. Nd5 {[%clk 0:02:27.2]} 17... Qe6 {[%clk 0:02:04.6]} 18. c3 {[%clk
0:02:22.1]} 18... Bxd5 {[%clk 0:02:03.9]} 19. exd5 {[%clk 0:02:17.6]} 19... Qg6
{[%clk 0:02:03.5]} 20. Qe2 {[%clk 0:02:07.4]} 20... Rfe8 {[%clk 0:01:58.8]} 21.
Rad1 {[%clk 0:02:05.3]} 21... e4 {[%clk 0:01:51.5]} 22. Rd4 {[%clk 0:02:03.3]}
22... f5 {[%clk 0:01:51.6]} 23. Qd1 {[%clk 0:01:53.5]} 23... Rc7 {[%clk
0:01:48.2]} 24. Re1 {[%clk 0:01:44.2]} 24... Rce7 {[%clk 0:01:44.9]} 25. Re3
{[%clk 0:01:31.2]} 25... Qg5 {[%clk 0:01:38.8]} 26. h4 {[%clk 0:01:30.1]} 26...
Qf6 {[%clk 0:01:38.6]} 27. Qe2 {[%clk 0:01:29.8]} 27... Re5 {[%clk 0:01:37.3]}
28. Qh5 {[%clk 0:01:15.3]} 28... Kh7 {[%clk 0:01:34.3]} 29. Qe2 {[%clk
0:00:51.5]} 29... Kg8 {[%clk 0:01:31.1]} 30. Qc2 {[%clk 0:00:40.3]} 30... g6
{[%clk 0:01:17.4]} 31. f4 {[%clk 0:00:30.9]} 31... exf3 {[%clk 0:01:15.4]} 32.
Rxf3 {[%clk 0:00:31.2]} 32... Re1+ {[%clk 0:00:59.6]} 33. Bf1 {[%clk 0:00:31.4]}
33... Qe5 {[%clk 0:00:54.5]} 34. h5 {[%clk 0:00:25.9]} 34... Ne4 {[%clk
0:00:49.3]} 35. Kg2 {[%clk 0:00:20.6]} 35... Ng5 {[%clk 0:00:45.8]} 36. Rf2
{[%clk 0:00:19.1]} 36... Ne4 {[%clk 0:00:43.9]} 37. Rf3 {[%clk 0:00:19.7]} 37...
gxh5 {[%clk 0:00:41.3]} 38. Bd3 {[%clk 0:00:19.8]} 38... h4 {[%clk 0:00:34.5]}
39. Rxe4 {[%clk 0:00:20.2]} 39... fxe4 {[%clk 0:00:32.4]} 40. Rf4 {[%clk
0:00:17.3]} 40... exd3 {[%clk 0:00:28.9]} 41. Qxd3 {[%clk 0:00:17.1]} 41... Qe2+
{[%clk 0:00:29.1]} 42. Qxe2 {[%clk 0:00:16.9]} 42... R1xe2+ {[%clk 0:00:29.5]}
43. Kh3 {[%clk 0:00:17.8]} 43... hxg3 {[%clk 0:00:29.4]} 44. Rg4+ {[%clk
0:00:17.9]} 44... Kh7 {[%clk 0:00:29.2]} 45. Rf4 {[%clk 0:00:18.8]} 0-1

[Event "*** Titled Tuesday Blitz"]
[Site "Chess.com"]
[Date "2021.03.30"]
[Round "3"]
[White "nrvisakh"]
[Black "Das_Virus_2020"]
[Result "0-1"]
[WhiteElo "2805"]
[BlackElo "2490"]
[TimeControl "180+1"]
[EndTime "10:28:27 PDT"]
[Termination "Das_Virus_2020 won on time"]

1. e4 {[%clk 0:03:00.9]} 1... e6 {[%clk 0:02:59.3]} 2. d4 {[%clk 0:03:00.1]}
2... d5 {[%clk 0:02:58.5]} 3. Nc3 {[%clk 0:03:00.4]} 3... Nf6 {[%clk 0:02:58]}
4. e5 {[%clk 0:02:58.6]} 4... Nfd7 {[%clk 0:02:58]} 5. f4 {[%clk 0:02:58.5]}
5... c5 {[%clk 0:02:57.9]} 6. Nf3 {[%clk 0:02:58.9]} 6... Qb6 {[%clk 0:02:56.5]}
7. Na4 {[%clk 0:02:47.8]} 7... Qa5+ {[%clk 0:02:56.2]} 8. c3 {[%clk 0:02:48.3]}
8... c4 {[%clk 0:02:48]} 9. b4 {[%clk 0:02:41.6]} 9... Qc7 {[%clk 0:02:36.3]}
10. Be3 {[%clk 0:02:39.1]} 10... Be7 {[%clk 0:02:28.7]} 11. Be2 {[%clk
0:02:30.3]} 11... O-O {[%clk 0:02:27.7]} 12. O-O {[%clk 0:02:30.3]} 12... f6
{[%clk 0:02:00.2]} 13. Nc5 {[%clk 0:01:59]} 13... Nxc5 {[%clk 0:01:56.6]} 14.
dxc5 {[%clk 0:01:58.9]} 14... fxe5 {[%clk 0:01:54.8]} 15. Nxe5 {[%clk
0:01:50.8]} 15... Nc6 {[%clk 0:01:51]} 16. Nxc6 {[%clk 0:01:43]} 16... bxc6
{[%clk 0:01:45.1]} 17. Bg4 {[%clk 0:01:42.8]} 17... e5 {[%clk 0:01:32.9]} 18.
Bxc8 {[%clk 0:01:37.9]} 18... Raxc8 {[%clk 0:01:30.3]} 19. Qg4 {[%clk
0:01:37.6]} 19... Bf6 {[%clk 0:01:16.6]} 20. Rae1 {[%clk 0:01:08.1]} 20... e4
{[%clk 0:01:15.2]} 21. Bd4 {[%clk 0:01:07]} 21... Qe7 {[%clk 0:01:07.9]} 22. Re3
{[%clk 0:01:02.6]} 22... Bxd4 {[%clk 0:01:05.4]} 23. cxd4 {[%clk 0:01:02.4]}
23... Qf6 {[%clk 0:01:06.3]} 24. Kh1 {[%clk 0:00:46.7]} 24... Qxd4 {[%clk
0:01:03]} 25. Ra3 {[%clk 0:00:46.7]} 25... Rc7 {[%clk 0:01:00]} 26. Qe6+ {[%clk
0:00:43.1]} 26... Kh8 {[%clk 0:00:53.4]} 27. Qd6 {[%clk 0:00:43.3]} 27... Rcf7
{[%clk 0:00:48.5]} 28. Rxa7 {[%clk 0:00:41.8]} 28... Qf6 {[%clk 0:00:44.2]} 29.
Rxf7 {[%clk 0:00:23.7]} 29... Qxd6 {[%clk 0:00:34.7]} 30. cxd6 {[%clk
0:00:24.6]} 30... Rxf7 {[%clk 0:00:35.1]} 31. a4 {[%clk 0:00:24.1]} 31... Kg8
{[%clk 0:00:33]} 32. Rb1 {[%clk 0:00:15.7]} 32... Rb7 {[%clk 0:00:28.2]} 33. a5
{[%clk 0:00:04.2]} 33... c3 {[%clk 0:00:26.6]} 34. h3 {[%clk 0:00:03.8]} 34...
Kf7 {[%clk 0:00:26.1]} 35. a6 {[%clk 0:00:03.6]} 35... Ra7 {[%clk 0:00:25.9]}
36. b5 {[%clk 0:00:03.5]} 36... cxb5 {[%clk 0:00:25.8]} 37. Rxb5 {[%clk
0:00:04.4]} 37... Ke6 {[%clk 0:00:25.1]} 38. Rc5 {[%clk 0:00:04.9]} 38... d4
{[%clk 0:00:24.4]} 39. Rc7 {[%clk 0:00:04.3]} 39... Rxa6 {[%clk 0:00:23.6]} 0-1

[Event "*** Titled Tuesday Blitz"]
[Site "Chess.com"]
[Date "2021.03.30"]
[Round "3"]
[White "gatocorbis"]
[Black "chessmachine14"]
[Result "0-1"]
[WhiteElo "2093"]
[BlackElo "2327"]
[TimeControl "180+1"]
[EndTime "10:28:28 PDT"]
[Termination "chessmachine14 won on time"]

1. e4 {[%clk 0:03:00]} 1... c5 {[%clk 0:02:59.4]} 2. c3 {[%clk 0:02:57.5]} 2...
Nf6 {[%clk 0:02:58.6]} 3. e5 {[%clk 0:02:55.9]} 3... Nd5 {[%clk 0:02:58.6]} 4.
Nf3 {[%clk 0:02:56]} 4... e6 {[%clk 0:02:56.3]} 5. g3 {[%clk 0:02:54.7]} 5...
Be7 {[%clk 0:02:54.2]} 6. Bg2 {[%clk 0:02:52.8]} 6... O-O {[%clk 0:02:54.3]} 7.
O-O {[%clk 0:02:51.3]} 7... Nc6 {[%clk 0:02:52.5]} 8. d4 {[%clk 0:02:49.4]} 8...
cxd4 {[%clk 0:02:50.6]} 9. cxd4 {[%clk 0:02:47.6]} 9... d6 {[%clk 0:02:50.6]}
10. exd6 {[%clk 0:02:43.6]} 10... Bxd6 {[%clk 0:02:50.1]} 11. Nc3 {[%clk
0:02:42.1]} 11... Nxc3 {[%clk 0:02:07.6]} 12. bxc3 {[%clk 0:02:39.4]} 12... Bd7
{[%clk 0:02:07.6]} 13. c4 {[%clk 0:02:30.7]} 13... Rc8 {[%clk 0:02:07.4]} 14.
Bb2 {[%clk 0:02:26.2]} 14... Na5 {[%clk 0:02:02.6]} 15. c5 {[%clk 0:02:23.8]}
15... Be7 {[%clk 0:01:57.5]} 16. Qe2 {[%clk 0:02:19.2]} 16... Bc6 {[%clk
0:01:47.9]} 17. Rac1 {[%clk 0:01:58]} 17... Qd5 {[%clk 0:01:20.7]} 18. Bc3
{[%clk 0:01:33.4]} 18... Nc4 {[%clk 0:01:07.4]} 19. Nh4 {[%clk 0:01:30.8]} 19...
Qd8 {[%clk 0:00:26.1]} 20. Bxc6 {[%clk 0:01:28.1]} 20... Rxc6 {[%clk 0:00:21.5]}
21. Qxc4 {[%clk 0:01:22.8]} 21... Bxh4 {[%clk 0:00:21]} 22. gxh4 {[%clk
0:01:17.1]} 22... Qxh4 {[%clk 0:00:20.8]} 23. Qe2 {[%clk 0:01:15.6]} 23... e5
{[%clk 0:00:20]} 24. f4 {[%clk 0:00:54.1]} 24... Rg6+ {[%clk 0:00:18.2]} 25. Kh1
{[%clk 0:00:51]} 25... exf4 {[%clk 0:00:18.3]} 26. d5 {[%clk 0:00:39.7]} 26...
f6 {[%clk 0:00:17.4]} 27. d6 {[%clk 0:00:34]} 27... Kh8 {[%clk 0:00:16.2]} 28.
Rg1 {[%clk 0:00:24.4]} 28... Rh6 {[%clk 0:00:15]} 29. Rcf1 {[%clk 0:00:13.3]}
29... g5 {[%clk 0:00:13.6]} 30. Rf2 {[%clk 0:00:07]} 30... Qh3 {[%clk
0:00:13.3]} 31. Qe7 {[%clk 0:00:01.5]} 31... Kg8 {[%clk 0:00:09.6]} 0-1

[Event "*** Titled Tuesday Blitz"]
[Site "Chess.com"]
[Date "2021.03.30"]
[Round "3"]
[White "morte-negra"]
[Black "DonPreuss"]
[Result "0-1"]
[WhiteElo "1882"]
[BlackElo "2285"]
[TimeControl "180+1"]
[EndTime "10:28:28 PDT"]
[Termination "DonPreuss won on time"]

1. e4 {[%clk 0:03:00.9]} 1... e5 {[%clk 0:02:55.9]} 2. Nf3 {[%clk 0:02:59.7]}
2... d5 {[%clk 0:02:55.9]} 3. Nc3 {[%clk 0:02:33.7]} 3... dxe4 {[%clk
0:02:55.6]} 4. Nxe4 {[%clk 0:02:32.7]} 4... f5 {[%clk 0:02:56.1]} 5. Nc3 {[%clk
0:02:29.7]} 5... e4 {[%clk 0:02:55.8]} 6. Ne5 {[%clk 0:02:21.7]} 6... Qd4 {[%clk
0:02:55.7]} 7. f4 {[%clk 0:02:16.5]} 7... Nf6 {[%clk 0:02:18.7]} 8. d3 {[%clk
0:01:45.7]} 8... Nc6 {[%clk 0:02:07.1]} 9. Nxc6 {[%clk 0:01:35.2]} 9... bxc6
{[%clk 0:02:06.4]} 10. dxe4 {[%clk 0:01:35]} 10... Qxd1+ {[%clk 0:02:05.5]} 11.
Kxd1 {[%clk 0:01:34]} 11... fxe4 {[%clk 0:02:03.5]} 12. h3 {[%clk 0:01:26.3]}
12... Bb4 {[%clk 0:01:59.9]} 13. Bd2 {[%clk 0:01:24.1]} 13... Be6 {[%clk
0:01:58.8]} 14. a3 {[%clk 0:01:19.5]} 14... Bd6 {[%clk 0:01:50.4]} 15. g4 {[%clk
0:01:14.4]} 15... O-O {[%clk 0:01:36.4]} 16. g5 {[%clk 0:01:11.9]} 16... Nh5
{[%clk 0:01:36.2]} 17. Nxe4 {[%clk 0:01:07.4]} 17... Nxf4 {[%clk 0:01:27.2]} 18.
Nxd6 {[%clk 0:01:04.3]} 18... cxd6 {[%clk 0:01:27]} 19. h4 {[%clk 0:00:46.6]}
19... Rae8 {[%clk 0:01:05.4]} 20. Kc1 {[%clk 0:00:43.2]} 20... Bd5 {[%clk
0:01:04]} 21. Rg1 {[%clk 0:00:39.9]} 21... Ne2+ {[%clk 0:01:02.9]} 22. Bxe2
{[%clk 0:00:39.1]} 22... Rxe2 {[%clk 0:01:03.7]} 23. Re1 {[%clk 0:00:31.7]}
23... Rh2 {[%clk 0:00:53.7]} 24. c4 {[%clk 0:00:15.6]} 24... Bxc4 {[%clk
0:00:50.3]} 25. Kc2 {[%clk 0:00:14]} 25... Rff2 {[%clk 0:00:48.5]} 26. Rad1
{[%clk 0:00:12.5]} 26... Be2 {[%clk 0:00:45.2]} 27. Rc1 {[%clk 0:00:10.6]} 27...
Bd3+ {[%clk 0:00:38.4]} 28. Kxd3 {[%clk 0:00:09.8]} 28... Rxd2+ {[%clk
0:00:38.6]} 29. Kc3 {[%clk 0:00:09.6]} 29... Rxb2 {[%clk 0:00:37.3]} 30. Re6
{[%clk 0:00:07.8]} 30... Rbd2 {[%clk 0:00:24.9]} 31. Rce1 {[%clk 0:00:05.9]}
31... Rc2+ {[%clk 0:00:21.5]} 32. Kb3 {[%clk 0:00:05.9]} 32... Rb2+ {[%clk
0:00:20.6]} 33. Kc3 {[%clk 0:00:05.5]} 33... Rb8 {[%clk 0:00:19.7]} 34. Re8+
{[%clk 0:00:04.3]} 34... Rxe8 {[%clk 0:00:19.1]} 35. Rxe8+ {[%clk 0:00:03.2]}
35... Kf7 {[%clk 0:00:19.7]} 36. Ra8 {[%clk 0:00:03.7]} 36... Rh3+ {[%clk
0:00:19.8]} 37. Kb4 {[%clk 0:00:02.4]} 37... Rxh4+ {[%clk 0:00:20]} 38. Kb3
{[%clk 0:00:02.4]} 38... Kg6 {[%clk 0:00:19.4]} 39. Rxa7 {[%clk 0:00:01.6]}
39... Rg4 {[%clk 0:00:18.3]} 0-1

[Event "*** Titled Tuesday Blitz"]
[Site "Chess.com"]
[Date "2021.03.30"]
[Round "3"]
[White "volunteers1998"]
[Black "Caterpiller35"]
[Result "0-1"]
[WhiteElo "2176"]
[BlackElo "2395"]
[TimeControl "180+1"]
[EndTime "10:28:29 PDT"]
[Termination "Caterpiller35 won on time"]

1. e4 {[%clk 0:03:00.9]} 1... c5 {[%clk 0:02:59.7]} 2. Nf3 {[%clk 0:02:59.6]}
2... Nc6 {[%clk 0:03:00.1]} 3. Bb5 {[%clk 0:02:57.4]} 3... g6 {[%clk 0:03:00.1]}
4. O-O {[%clk 0:02:54.1]} 4... Bg7 {[%clk 0:02:59.1]} 5. Re1 {[%clk 0:02:52]}
5... Nf6 {[%clk 0:02:59.1]} 6. e5 {[%clk 0:02:48.8]} 6... Nd5 {[%clk 0:02:58.8]}
7. Nc3 {[%clk 0:02:46.7]} 7... Nc7 {[%clk 0:02:58.4]} 8. Bxc6 {[%clk 0:02:39.1]}
8... dxc6 {[%clk 0:02:58.6]} 9. Ne4 {[%clk 0:02:36.5]} 9... b6 {[%clk
0:02:42.9]} 10. Nf6+ {[%clk 0:02:29.5]} 10... Kf8 {[%clk 0:02:42.9]} 11. Ne4
{[%clk 0:02:27.2]} 11... Bg4 {[%clk 0:02:37.1]} 12. d3 {[%clk 0:02:26.2]} 12...
Ne6 {[%clk 0:02:35.5]} 13. Neg5 {[%clk 0:02:17.9]} 13... Nxg5 {[%clk 0:02:20.6]}
14. Bxg5 {[%clk 0:02:17.5]} 14... Qd5 {[%clk 0:02:20.8]} 15. Qe2 {[%clk
0:02:05]} 15... Rd8 {[%clk 0:02:11.2]} 16. Qe4 {[%clk 0:01:56.2]} 16... Bxf3
{[%clk 0:02:07.9]} 17. Qxf3 {[%clk 0:01:49.6]} 17... Qxf3 {[%clk 0:02:07.2]} 18.
gxf3 {[%clk 0:01:48.9]} 18... h6 {[%clk 0:02:06.9]} 19. Bf4 {[%clk 0:01:44]}
19... g5 {[%clk 0:02:06.4]} 20. Bd2 {[%clk 0:01:40.8]} 20... Rd4 {[%clk
0:02:03.6]} 21. Bc3 {[%clk 0:01:31.7]} 21... Rf4 {[%clk 0:02:03.4]} 22. Kg2
{[%clk 0:01:31.5]} 22... e6 {[%clk 0:02:00.5]} 23. Re4 {[%clk 0:01:28.4]} 23...
Rf5 {[%clk 0:01:56.8]} 24. a4 {[%clk 0:01:23.2]} 24... a5 {[%clk 0:01:54.5]} 25.
Rae1 {[%clk 0:01:17.6]} 25... Ke7 {[%clk 0:01:54.2]} 26. b3 {[%clk 0:01:14.5]}
26... Rd8 {[%clk 0:01:53.1]} 27. Bb2 {[%clk 0:01:08.7]} 27... Kd7 {[%clk
0:01:52.1]} 28. Bc1 {[%clk 0:01:04.4]} 28... Kc7 {[%clk 0:01:51]} 29. f4 {[%clk
0:01:01.3]} 29... Rd5 {[%clk 0:01:50.5]} 30. fxg5 {[%clk 0:00:53.6]} 30... hxg5
{[%clk 0:01:50.2]} 31. f4 {[%clk 0:00:51.7]} 31... gxf4 {[%clk 0:01:48.6]} 32.
Bxf4 {[%clk 0:00:48.8]} 32... Rd8 {[%clk 0:01:45]} 33. Bg3 {[%clk 0:00:41.3]}
33... Rg8 {[%clk 0:01:41.9]} 34. Rg4 {[%clk 0:00:34.6]} 34... Kd7 {[%clk
0:01:34.8]} 35. Ree4 {[%clk 0:00:29.3]} 35... Ke7 {[%clk 0:01:33.5]} 36. d4
{[%clk 0:00:25.3]} 36... cxd4 {[%clk 0:01:26.9]} 37. Rxd4 {[%clk 0:00:24.7]}
37... Bxe5 {[%clk 0:01:26.9]} 38. Rxg8 {[%clk 0:00:20.8]} 38... Bxd4 {[%clk
0:01:26.7]} 39. Rc8 {[%clk 0:00:17.6]} 39... Rc5 {[%clk 0:01:23.8]} 40. Rc7+
{[%clk 0:00:16]} 40... Kf6 {[%clk 0:01:21.2]} 41. c4 {[%clk 0:00:15.2]} 41...
Kg6 {[%clk 0:01:08.4]} 42. Kf3 {[%clk 0:00:15.1]} 42... f5 {[%clk 0:01:08.2]}
43. Rc8 {[%clk 0:00:07.4]} 43... e5 {[%clk 0:01:08.2]} 44. Rg8+ {[%clk
0:00:05.8]} 44... Kf7 {[%clk 0:01:08.1]} 45. Rg5 {[%clk 0:00:04.4]} 45... Kf6
{[%clk 0:01:07.7]} 46. Rh5 {[%clk 0:00:04.3]} 46... e4+ {[%clk 0:01:07.7]} 47.
Ke2 {[%clk 0:00:03.7]} 47... b5 {[%clk 0:01:04.6]} 48. Bf4 {[%clk 0:00:03.5]}
48... bxc4 {[%clk 0:01:03.5]} 49. bxc4 {[%clk 0:00:03.9]} 49... Rxc4 {[%clk
0:01:03.6]} 50. Rh6+ {[%clk 0:00:03.9]} 50... Kf7 {[%clk 0:01:01.8]} 51. Rd6
{[%clk 0:00:03.6]} 51... c5 {[%clk 0:00:58.9]} 52. Rd5 {[%clk 0:00:02.4]} 52...
Ke6 {[%clk 0:00:56.6]} 53. Rd6+ {[%clk 0:00:01.9]} 53... Ke7 {[%clk 0:00:57.1]}
54. Rd5 {[%clk 0:00:01.7]} 54... Rxa4 {[%clk 0:00:57.3]} 0-1